bitfinex/quotes_SOLUSD_20230905
["timestamp","ask_amount","ask_price","bid_price","bid_amount"]
[1693903691547,8.079,19.309,19.303,10.70236177]
[1693903691850,8.079,19.309,19.303,8.081]
[1693903692647,345.42246232,19.312,19.304,4.94461036]
[1693903692959,345.42246232,19.312,19.306,8.08]
[1693903694660,337.34446232,19.312,19.306,8.08]
[1693903695854,345.42146232,19.312,19.306,8.08]
[1693903696248,337.34446232,19.312,19.306,8.08]
[1693903697761,247.06376232,19.312,19.306,8.08]
[1693903702254,255.14076232,19.312,19.306,8.08]
[1693903702965,247.06376232,19.312,19.306,8.08]
[1693903708569,8.076,19.315,19.306,8.08]
[1693903709068,8.076,19.317,19.306,8.08]
[1693903709875,8.076,19.317,19.306,23.39071983]
[1693903712273,99.1872,19.319,19.306,23.39071983]
[1693903730001,99.1872,19.319,19.31,34.177]
[1693903734704,99.1872,19.319,19.31,61.097]
[1693903736204,99.1872,19.319,19.31,101.92558621]
[1693903755332,26.92,19.33,19.31,101.92558621]
[1693903755630,98.2848,19.328,19.31,101.92558621]
[1693903785763,98.2848,19.328,19.311,25.76075304]
[1693903786063,98.2848,19.328,19.316,91.115]
[1693903786449,26.92,19.33,19.316,91.115]
[1693903786649,20.0,19.329,19.316,91.115]
[1693903787867,26.92,19.34,19.317,20.0]
[1693903788168,550.3190992,19.336,19.322,91.083]
[1693903788468,94.7986,19.337,19.322,91.083]
[1693903788857,94.7986,19.337,19.322,34.156]
[1693903789057,26.92,19.34,19.322,34.156]
[1693903789357,94.7986,19.337,19.322,34.156]
[1693903789756,26.92,19.34,19.322,34.156]
[1693903790461,98.2977,19.339,19.322,34.156]
[1693903792457,26.92,19.34,19.322,34.156]
[1693903792659,26.92,19.34,19.327,91.061]
[1693903792853,26.92,19.34,19.331,8.069]
[1693903795761,98.2977,19.344,19.331,8.069]
[1693903799757,26.92,19.34,19.331,8.069]
[1693903806377,98.2977,19.344,19.331,8.069]
[1693903808476,98.2977,19.344,19.331,111.012]
[1693903809175,26.92,19.35,19.331,111.012]
[1693903809473,168.6587,19.349,19.331,111.012]
[1693903809653,168.6587,19.349,19.331,8.069]
[1693903832883,113.6587,19.349,19.331,8.069]
[1693903834393,55.0,19.348,19.331,8.069]
[1693903841693,113.6587,19.349,19.331,8.069]
[1693903842297,113.6587,19.349,19.331,49.23963081]
[1693903843006,55.0,19.348,19.331,49.23963081]
[1693903844894,55.0,19.348,19.331,8.069]
[1693903845400,55.0,19.348,19.331,23.38389141]
[1693903847900,55.0,19.348,19.331,8.069]
[1693903859008,113.6587,19.349,19.331,8.069]
[1693903859391,113.6587,19.349,19.331,34.141]
[1693903860196,55.0,19.348,19.331,34.141]
[1693903862707,113.6587,19.349,19.331,34.141]
[1693903865415,55.0,19.348,19.331,34.141]
[1693903874410,26.92,19.34,19.331,8.069]
[1693903874605,55.0,19.348,19.331,8.069]
[1693903875535,111.907,19.348,19.331,8.069]
[1693903883026,127.32914174,19.348,19.331,8.069]
[1693903890242,56.907,19.348,19.331,8.069]
[1693903890425,113.6587,19.349,19.331,111.012]
[1693903896026,55.0,19.348,19.331,111.012]
[1693903896843,113.6587,19.349,19.331,111.012]
[1693903899634,113.6587,19.349,19.331,153.2457125]
[1693903901040,113.6587,19.349,19.331,168.60869078]
[1693903903040,55.0,19.348,19.331,168.60869078]
[1693903920048,55.0,19.348,19.332,55.0]
[1693903920249,55.0,19.348,19.336,8.067]
[1693903930758,55.0,19.348,19.332,55.0]
[1693903930956,55.0,19.348,19.33,26.92]
[1693903935465,55.0,19.348,19.333,8.068]
[1693903935967,55.0,19.348,19.333,8.069]
[1693903940253,55.0,19.348,19.327,26.076]
[1693903940565,55.0,19.348,19.331,8.069]
[1693903940867,110.961454,19.348,19.331,8.069]
[1693903959189,55.961454,19.348,19.331,111.012]
[1693903960394,55.0,19.347,19.331,111.012]
[1693903962302,55.961454,19.348,19.331,111.012]
[1693903962518,113.6587,19.349,19.332,55.0]
[1693903962805,113.6587,19.349,19.337,91.015]
[1693903963005,113.6587,19.349,19.337,34.13]
[1693903963399,113.6587,19.349,19.337,8.067]
[1693903963593,113.6587,19.349,19.333,56.895]
[1693903963795,55.0,19.348,19.333,56.895]
[1693903964101,55.0,19.348,19.336,8.067]
[1693903968814,93.6587,19.349,19.336,64.955]
[1693903969014,93.6587,19.349,19.337,75.0]
[1693903969212,196.13835257,19.356,19.34,8.065]
[1693903969406,90.4269,19.355,19.34,8.065]
[1693903971719,55.0,19.354,19.34,8.065]
[1693903983022,55.0,19.354,19.34,34.985]
[1693903983231,90.4269,19.355,19.34,34.985]
[1693903988523,90.4269,19.355,19.34,33.82575304]
[1693903988715,90.4269,19.355,19.34,115.17522568]
[1693903989433,162.79802539,19.368,19.34,115.17522568]
[1693903989434,162.79802539,19.368,19.35,26.92]
[1693903989637,162.79802539,19.368,19.355,34.098]
[1693903989827,434.1052713,19.37,19.355,34.098]
[1693903990127,80.190225,19.369,19.355,34.098]
[1693903990340,434.1052713,19.37,19.355,34.098]
[1693903990517,90.966,19.368,19.355,34.098]
[1693903992434,55.0,19.367,19.355,34.098]
[1693903993417,90.966,19.368,19.355,34.098]
[1693903993631,90.966,19.368,19.355,136.913]
[1693903995138,90.966,19.368,19.355,34.098]
[1693904006641,90.966,19.368,19.355,49.3071942]
[1693904010149,90.966,19.368,19.355,23.2681942]
[1693904010351,55.0,19.367,19.355,23.2681942]
[1693904012241,90.966,19.368,19.355,23.2681942]
[1693904012445,55.0,19.367,19.355,23.2681942]
[1693904014039,55.0,19.367,19.355,8.059]
[1693904062999,90.966,19.368,19.355,8.059]
[1693904063168,90.966,19.368,19.356,20.0]
[1693904063482,90.966,19.368,19.359,34.091]
[1693904063985,90.966,19.368,19.362,8.056]
[1693904069271,76.815,19.376,19.362,8.056]
[1693904069483,25.76075304,19.381,19.362,8.056]
[1693904069684,98.4672,19.375,19.362,8.056]
[1693904088614,98.4672,19.375,19.362,23.40930577]
[1693904114123,26.92,19.38,19.362,23.40930577]
[1693904114323,96.2172,19.382,19.373,8.052]
[1693904126261,589.1,19.393,19.373,8.052]
[1693904126436,25.76075304,19.396,19.38,26.92]
[1693904126642,94.4684,19.392,19.383,8.048]
[1693904127356,94.4684,19.392,19.38,52.925]
[1693904127357,94.4684,19.392,19.382,8.048]
[1693904159171,55.0,19.391,19.38,8.049]
[1693904159872,26.92,19.39,19.372,8.052]
[1693904160178,144.2161,19.39,19.372,8.052]
[1693904160380,55.0,19.389,19.372,8.052]
[1693904161277,144.2161,19.39,19.372,8.052]
[1693904162974,124.2161,19.39,19.372,8.052]
[1693904163181,20.0,19.389,19.372,8.052]
[1693904171076,55.0,19.388,19.372,8.052]
[1693904175585,20.0,19.389,19.372,8.052]
[1693904175895,55.0,19.388,19.372,8.052]
[1693904198708,55.0,19.388,19.371,55.89520535]
[1693904198909,55.0,19.388,19.372,8.052]
[1693904209415,55.0,19.388,19.372,7.94362845]
[1693904210115,20.0,19.389,19.372,7.94362845]
[1693904210620,20.0,19.389,19.372,33.70438149]
[1693904216722,20.0,19.389,19.372,7.94362845]
[1693904216903,55.0,19.388,19.372,7.94362845]
[1693904217109,20.0,19.389,19.372,7.94362845]
[1693904217318,55.0,19.388,19.372,7.94362845]
[1693904221519,55.0,19.388,19.371,26.017]
[1693904221520,55.0,19.388,19.371,8.052]
[1693904225730,26.92,19.38,19.363,8.056]
[1693904225920,20.0,19.379,19.363,8.056]
[1693904226316,91.1162,19.378,19.363,8.056]
[1693904237637,91.1162,19.378,19.363,23.61385123]
[1693904240540,55.0,19.377,19.363,23.61385123]
[1693904241442,55.0,19.377,19.363,65.31633055]
[1693904245744,91.1162,19.378,19.363,65.31633055]
[1693904245933,55.0,19.377,19.363,65.31633055]
[1693904261251,91.1162,19.378,19.363,65.31633055]
[1693904261457,91.1162,19.378,19.363,193.85008359]
[1693904261955,20.0,19.379,19.363,193.85008359]
[1693904266646,95.4712,19.385,19.363,193.85008359]
[1693904266843,95.4712,19.385,19.37,26.92]
[1693904267048,95.4712,19.385,19.373,90.845]
[1693904274055,26.92,19.39,19.373,90.845]
[1693904274265,20.0,19.389,19.373,90.845]
[1693904274959,45.76075304,19.389,19.373,34.066]
[1693904280766,25.76075304,19.388,19.373,34.066]
[1693904282268,25.76075304,19.388,19.373,8.052]
[1693904282466,55.0,19.387,19.373,8.052]
[1693904282667,25.76075304,19.386,19.373,8.052]
[1693904282863,55.0,19.385,19.373,8.052]
[1693904284975,55.0,19.385,19.37,26.92]
[1693904285273,25.76075304,19.384,19.369,40.69798656]
[1693904285470,25.76075304,19.384,19.37,28.053]
[1693904285471,55.0,19.383,19.37,28.053]
[1693904293474,56.802,19.386,19.37,157.709]
[1693904293669,96.7431,19.387,19.37,157.709]
[1693904294868,20.0,19.389,19.37,157.709]
[1693904295077,98.8546,19.388,19.37,137.709]
[1693904295377,20.0,19.389,19.37,137.709]
[1693904296374,20.0,19.389,19.37,163.46975304]
[1693904312986,26.92,19.39,19.37,163.46975304]
[1693904313282,20.0,19.389,19.37,163.46975304]
[1693904315584,20.0,19.389,19.38,26.92]
[1693904315785,20.0,19.391,19.382,8.048]
[1693904319483,225.04216197,19.392,19.382,8.048]
[1693904319873,225.04216197,19.392,19.382,34.051]
[1693904321281,98.8546,19.395,19.382,34.051]
[1693904334992,98.8546,19.395,19.386,8.046]
[1693904338401,98.8546,19.395,19.383,55.0]
[1693904338604,98.8546,19.395,19.384,8.047]
[1693904341493,98.8546,19.395,19.383,8.048]
[1693904341689,98.8546,19.395,19.382,8.048]
[1693904342305,55.0,19.394,19.382,8.048]
[1693904345009,26.92,19.39,19.374,56.774]
[1693904345209,75.0,19.389,19.377,8.05]
[1693904346900,75.0,19.389,19.377,34.06]
[1693904348930,20.0,19.389,19.377,34.06]
[1693904351639,20.0,19.389,19.377,8.05]
[1693904353936,55.0,19.388,19.377,8.05]
[1693904355946,99.9656,19.387,19.377,8.05]
[1693904356847,55.0,19.388,19.377,8.05]
[1693904358045,153.8635,19.388,19.377,8.05]
[1693904365548,153.8635,19.388,19.374,123.35253147]
[1693904365549,153.8635,19.388,19.375,8.051]
[1693904369854,153.8635,19.388,19.373,8.052]
[1693904370456,153.8635,19.388,19.372,8.052]
[1693904375751,98.8635,19.388,19.372,8.052]
[1693904376951,55.0,19.387,19.372,8.052]
[1693904378151,98.8635,19.388,19.372,8.052]
[1693904379264,98.8635,19.388,19.372,33.81275304]
[1693904379560,98.8635,19.388,19.38,26.92]
[1693904379866,98.8635,19.388,19.382,8.048]
[1693904385361,68.47211558,19.4,19.382,8.048]
[1693904385672,75.0,19.399,19.382,8.048]
[1693904386357,93.8133,19.398,19.382,8.048]
[1693904394972,55.0,19.397,19.38,26.92]
[1693904395168,124.89031114,19.397,19.37,26.92]
[1693904395467,26.92,19.39,19.37,26.92]
[1693904395666,20.0,19.389,19.374,8.051]
[1693904395965,118.6072,19.389,19.374,8.051]
[1693904398570,55.0,19.388,19.374,8.051]
[1693904400785,118.6072,19.389,19.374,8.051]
[1693904404782,118.6072,19.389,19.374,23.48288854]
[1693904407579,118.6072,19.389,19.374,80.25988854]
[1693904409976,98.6072,19.389,19.382,34.05]
[1693904410583,26.92,19.4,19.382,34.05]
[1693904410784,92.8207,19.399,19.382,34.05]
[1693904410987,112.8207,19.399,19.382,34.05]
[1693904411176,55.0,19.398,19.382,34.05]
[1693904414686,112.8207,19.399,19.382,34.05]
[1693904425283,55.0,19.398,19.382,34.05]
[1693904425697,112.8207,19.399,19.382,34.05]
[1693904440907,92.8207,19.399,19.382,34.05]
[1693904454436,55.0,19.398,19.382,34.05]
[1693904463631,55.0,19.398,19.382,8.048]
[1693904463835,147.8207,19.398,19.382,8.048]
[1693904465239,26.92,19.39,19.38,48.81640587]
[1693904465446,20.0,19.389,19.38,8.049]
[1693904466651,20.0,19.389,19.379,8.049]
[1693904469546,20.0,19.389,19.378,8.05]
[1693904472047,111.959,19.389,19.378,8.05]
[1693904475343,91.959,19.389,19.378,8.05]
[1693904482971,91.959,19.389,19.38,26.92]
[1693904483159,91.959,19.389,19.382,90.802]
[1693904483668,92.8207,19.398,19.382,90.802]
[1693904483865,90.4024,19.397,19.382,90.802]
[1693904484372,55.0,19.396,19.382,90.802]
[1693904485970,55.0,19.396,19.382,34.05]
[1693904494074,55.0,19.396,19.382,8.048]
[1693904509307,54.93989291,19.396,19.382,8.048]
[1693904528417,20.0,19.395,19.382,8.048]
[1693904528610,55.0,19.394,19.382,8.048]
[1693904528814,20.0,19.393,19.382,8.048]
[1693904529015,55.0,19.392,19.382,8.048]
[1693904529317,20.0,19.391,19.382,8.048]
[1693904529517,55.0,19.39,19.382,8.048]
[1693904529714,20.0,19.389,19.382,8.048]
[1693904531216,20.0,19.389,19.377,26.009]
[1693904531417,20.0,19.389,19.376,56.769]
[1693904532518,20.0,19.389,19.379,8.049]
[1693904533803,55.0,19.388,19.379,8.049]
[1693904535607,55.0,19.388,19.378,8.05]
[1693904547535,55.0,19.388,19.377,8.05]
[1693904556339,20.0,19.389,19.377,8.05]
[1693904557750,55.0,19.388,19.377,8.05]
[1693904560845,20.0,19.389,19.377,8.05]
[1693904561147,97.0608,19.391,19.377,8.05]
[1693904561336,97.0608,19.391,19.38,26.92]
[1693904561650,97.0608,19.391,19.383,90.798]
[1693904568653,98.6723,19.398,19.383,90.798]
[1693904581365,638.56376232,19.401,19.383,90.798]
[1693904581554,20.0,19.4,19.383,90.798]
[1693904582261,158.850375,19.407,19.393,90.752]
[1693904582651,25.80375585,19.409,19.393,90.752]
[1693904582865,95.2893,19.408,19.393,90.752]
[1693904583448,122.2093,19.41,19.393,90.752]
[1693904583666,20.0,19.409,19.393,90.752]
[1693904583857,115.2893,19.409,19.393,90.752]
[1693904584268,142.2093,19.409,19.393,90.752]
[1693904589261,115.2893,19.409,19.393,90.752]
[1693904590255,115.2893,19.409,19.393,193.366]
[1693904591168,26.92,19.41,19.393,193.366]
[1693904591366,247.06376232,19.413,19.393,193.366]
[1693904591367,20.0,19.409,19.393,193.366]
[1693904591563,20.0,19.412,19.393,193.366]
[1693904598582,247.06376232,19.413,19.4,26.92]
[1693904598771,391.5,19.416,19.403,34.013]
[1693904599177,15.41774109,19.418,19.403,34.013]
[1693904599380,111.696,19.417,19.403,34.013]
[1693904602090,55.0,19.417,19.403,34.013]
[1693904606272,15.41774109,19.418,19.403,34.013]
[1693904610090,55.0,19.417,19.403,34.013]
[1693904620409,15.41774109,19.418,19.403,34.013]
[1693904625311,55.0,19.417,19.403,34.013]
[1693904626322,55.0,19.417,19.403,8.039]
[1693904641934,55.0,19.417,19.401,8.04]
[1693904642229,26.92,19.41,19.4,8.041]
[1693904642435,20.0,19.409,19.399,8.041]
[1693904644631,20.0,19.409,19.398,8.042]
[1693904644939,20.0,19.409,19.396,15.70015455]
[1693904645136,20.0,19.409,19.396,23.74215455]
[1693904645340,55.0,19.408,19.396,15.70015455]
[1693904645930,55.0,19.408,19.396,23.74215455]
[1693904646937,20.0,19.409,19.396,23.74215455]
[1693904648250,20.0,19.409,19.396,8.042]
[1693904651030,20.0,19.409,19.396,34.026]
[1693904651429,55.0,19.408,19.396,34.026]
[1693904653142,55.0,19.408,19.396,8.042]
[1693904676938,55.0,19.408,19.395,23.28732989]
[1693904677149,55.0,19.408,19.395,15.24432989]
[1693904678053,55.0,19.408,19.395,23.28732989]
[1693904686766,55.0,19.408,19.395,8.043]
[1693904696802,70.12532232,19.408,19.395,8.043]
[1693904704492,20.0,19.409,19.395,8.043]
[1693904705901,55.0,19.408,19.395,8.043]
[1693904722709,55.0,19.408,19.394,8.043]
[1693904731119,55.0,19.408,19.393,8.044]
[1693904731316,55.0,19.408,19.391,25.99]
[1693904732620,55.0,19.408,19.394,8.043]
[1693904733522,55.0,19.408,19.393,8.044]
[1693904735822,20.0,19.407,19.386,15.48117585]
[1693904736011,26.92,19.4,19.386,15.48117585]
[1693904736207,20.0,19.399,19.384,8.047]
[1693904736425,55.0,19.398,19.385,0.30923052]
[1693904737123,81.004,19.398,19.385,0.30923052]
[1693904737319,92.8723,19.397,19.385,0.30923052]
[1693904737510,55.0,19.396,19.385,0.30923052]
[1693904738107,55.0,19.396,19.383,8.048]
[1693904738329,55.0,19.396,19.377,56.767]
[1693904738619,55.0,19.396,19.379,8.049]
[1693904738821,20.0,19.395,19.379,8.049]
[1693904739026,55.0,19.394,19.379,8.049]
[1693904739323,20.0,19.393,19.379,8.049]
[1693904739522,55.0,19.392,19.379,8.049]
[1693904739724,20.0,19.391,19.379,8.049]
[1693904740024,55.0,19.39,19.379,8.049]
[1693904740323,20.0,19.389,19.379,8.049]
[1693904741322,20.0,19.391,19.379,8.049]
[1693904741626,20.0,19.396,19.379,8.049]
[1693904741813,55.0,19.395,19.379,8.049]
[1693904742016,20.0,19.394,19.379,8.049]
[1693904742218,55.0,19.393,19.379,8.049]
[1693904742422,20.0,19.392,19.379,8.049]
[1693904743127,55.0,19.391,19.379,8.049]
[1693904743313,20.0,19.39,19.379,8.049]
[1693904744112,20.0,19.395,19.38,26.92]
[1693904744313,20.0,19.396,19.384,8.047]
[1693904744811,103.677,19.396,19.384,8.047]
[1693904745724,55.0,19.395,19.384,8.047]
[1693904746027,20.0,19.394,19.384,8.047]
[1693904747329,83.677,19.396,19.384,8.047]
[1693904747528,92.8723,19.397,19.384,8.047]
[1693904748829,92.8723,19.397,19.384,7.547]
[1693904760432,55.0,19.396,19.384,7.547]
[1693904760624,55.0,19.396,19.383,8.047]
[1693904760826,20.0,19.395,19.379,8.049]
[1693904761023,55.0,19.394,19.378,8.05]
[1693904761325,20.0,19.393,19.378,8.05]
[1693904761525,55.0,19.392,19.378,8.05]
[1693904761715,20.0,19.391,19.378,8.05]
[1693904762327,97.6181,19.39,19.378,8.05]
[1693904762529,20.0,19.389,19.378,8.05]
[1693904764730,20.0,19.389,19.378,7.9314392]
[1693904765527,55.0,19.388,19.372,41.49742414]
[1693904765842,55.0,19.388,19.373,8.052]
[1693904770848,55.0,19.388,19.366,82.60275585]
[1693904771145,55.0,19.388,19.367,20.0]
[1693904772342,10.69653,19.387,19.371,8.053]
[1693904772645,55.0,19.386,19.371,8.053]
[1693904772843,26.92,19.38,19.365,15.84210526]
[1693904773033,26.92,19.38,19.367,8.054]
[1693904773225,75.0,19.379,19.367,8.054]
[1693904773829,93.1878,19.378,19.367,8.054]
[1693904774029,55.0,19.377,19.367,8.054]
[1693904777047,55.0,19.377,19.366,8.055]
[1693904778032,55.0,19.377,19.365,8.055]
[1693904780247,55.0,19.377,19.365,7.555]
[1693904786845,55.0,19.377,19.365,7.055]
[1693904788246,26.92,19.37,19.359,8.057]
[1693904788452,167.4545,19.369,19.359,8.057]
[1693904788758,112.4545,19.369,19.359,8.057]
[1693904788947,112.4545,19.369,19.36,26.92]
[1693904789143,112.4545,19.369,19.362,34.085]
[1693904792643,92.4545,19.369,19.362,34.085]
[1693904793362,204.53534503,19.376,19.362,34.085]
[1693904793861,99.0464,19.375,19.362,34.085]
[1693904794252,99.0464,19.375,19.362,136.863]
[1693904796058,164.30435432,19.384,19.362,136.863]
[1693904796263,75.0,19.379,19.362,136.863]
[1693904799456,75.0,19.379,19.36,26.92]
[1693904799655,20.0,19.379,19.362,136.863]
[1693904800152,20.0,19.379,19.367,8.054]
[1693904809458,20.0,19.379,19.368,55.0]
[1693904809658,20.0,19.379,19.368,63.054]
[1693904811473,20.0,19.379,19.368,8.054]
[1693904812368,20.0,19.379,19.367,8.054]
[1693904813072,20.0,19.379,19.366,8.055]
[1693904813255,55.0,19.378,19.365,8.055]
[1693904814770,98.9552,19.377,19.365,8.055]
[1693904816667,98.9552,19.377,19.358,102.795]
[1693904816875,55.0,19.376,19.363,8.056]
[1693904825275,98.9552,19.377,19.363,64.865]
[1693904832682,98.9552,19.377,19.363,8.056]
[1693904832879,55.0,19.376,19.363,8.056]
[1693904849289,98.9552,19.377,19.363,8.056]
[1693904850890,55.0,19.376,19.363,8.056]
[1693904853196,98.9552,19.377,19.363,8.056]
[1693904866400,55.0,19.376,19.363,8.056]
[1693904866599,98.9552,19.377,19.36,26.92]
[1693904866805,55.0,19.376,19.361,8.057]
[1693904869109,55.0,19.376,19.36,34.977]
[1693904871508,98.9552,19.377,19.36,34.977]
[1693904871699,98.9552,19.377,19.361,57.84702759]
[1693904871900,98.9552,19.377,19.365,90.881]
[1693904872901,20.0,19.379,19.365,90.881]
[1693904873101,20.0,19.382,19.365,90.881]
[1693904873812,20.0,19.382,19.365,34.08]
[1693904874107,55.0,19.381,19.365,34.08]
[1693904874308,20.0,19.38,19.365,34.08]
[1693904874509,55.0,19.379,19.365,8.055]
[1693904875009,90.6034,19.378,19.365,8.055]
[1693904875403,55.0,19.379,19.365,8.055]
[1693904875604,90.6034,19.378,19.365,8.055]
[1693904876413,55.0,19.379,19.365,8.055]
[1693904876609,90.6034,19.377,19.365,8.055]
[1693904877309,55.0,19.379,19.365,8.055]
[1693904877511,55.0,19.379,19.36,26.92]
[1693904877996,80.80375585,19.379,19.36,26.92]
[1693904878202,20.0,19.378,19.36,34.977]
[1693904878397,55.0,19.377,19.36,34.977]
[1693904878599,20.0,19.376,19.36,34.977]
[1693904878903,55.0,19.375,19.36,34.977]
[1693904879412,20.0,19.374,19.36,34.977]
[1693904879713,55.0,19.373,19.36,34.977]
[1693904879916,20.0,19.372,19.36,34.977]
[1693904880608,55.0,19.371,19.36,34.977]
[1693904880912,20.0,19.37,19.36,34.977]
[1693904883110,20.0,19.37,19.36,8.057]
[1693904892921,55.0,19.369,19.355,15.21694214]
[1693904893311,55.0,19.369,19.357,8.058]
[1693904899419,55.0,19.369,19.355,41.25594214]
[1693904899420,55.0,19.369,19.356,8.059]
[1693904907831,55.0,19.37,19.356,8.059]
[1693904908031,20.0,19.369,19.356,8.059]
[1693904908221,55.0,19.368,19.356,8.059]
[1693904912044,55.0,19.368,19.356,23.24039534]
[1693904920447,91.4565,19.371,19.356,23.24039534]
[1693904920744,75.0,19.37,19.356,23.24039534]
[1693904929042,101.92,19.37,19.355,8.059]
[1693904929846,112.62492,19.37,19.355,8.059]
[1693904932048,112.62492,19.37,19.354,8.06]
[1693904940343,153.54688382,19.37,19.354,8.06]
[1693904943960,153.54688382,19.37,19.351,26.044]
[1693904944154,153.54688382,19.37,19.353,8.06]
[1693904946149,10.71323,19.369,19.353,8.06]
[1693904946454,55.0,19.368,19.353,8.06]
[1693904961270,70.4852713,19.368,19.353,8.06]
[1693904964176,55.0,19.368,19.353,8.06]
[1693904964681,10.71323,19.369,19.353,8.06]
[1693904964860,10.71323,19.369,19.358,8.058]
[1693904965055,10.71323,19.369,19.356,8.059]
[1693904965263,186.52774358,19.37,19.356,8.059]
[1693904966474,186.52774358,19.37,19.36,26.92]
[1693904966678,166.52774358,19.37,19.363,8.056]
[1693904966861,91.4565,19.371,19.363,8.056]
[1693904967678,391.5,19.379,19.363,8.056]
[1693904967976,15.28837208,19.382,19.363,8.056]
[1693904968179,96.1089,19.378,19.363,8.056]
[1693904978865,96.1089,19.378,19.363,49.11385123]
[1693904979068,96.1089,19.378,19.363,8.056]
[1693904989890,96.1089,19.378,19.37,26.92]
[1693904990074,96.1089,19.378,19.37,34.973]
[1693904990274,96.1089,19.378,19.371,55.0]
[1693904990487,96.1089,19.378,19.371,63.052]
[1693904990789,25.80375585,19.386,19.371,63.052]
[1693904990988,115.9606,19.385,19.371,63.052]
[1693904991183,115.9606,19.385,19.371,55.0]
[1693904991690,95.9606,19.385,19.371,63.053]
[1693904996479,95.9606,19.385,19.381,8.048]
[1693904996685,589.1,19.392,19.381,8.048]
[1693904996882,111.4195,19.391,19.381,8.048]
[1693904997892,91.4195,19.391,19.382,55.0]
[1693904998197,91.4195,19.391,19.384,8.047]
[1693905000094,25.80375585,19.398,19.384,8.047]
[1693905000298,90.6923,19.397,19.384,8.047]
[1693905000499,90.6923,19.397,19.39,26.92]
[1693905000696,90.6923,19.397,19.392,8.044]
[1693905000993,90.6923,19.397,19.39,34.965]
[1693905001978,189.32768581,19.407,19.39,34.965]
[1693905002182,215.13144166,19.407,19.39,34.965]
[1693905003186,93.969,19.406,19.39,34.965]
[1693905003596,215.13144166,19.407,19.39,34.965]
[1693905004101,93.969,19.406,19.39,34.965]
[1693905004603,215.13144166,19.407,19.39,34.965]
[1693905004989,150.9164,19.406,19.39,34.965]
[1693905005701,95.9164,19.406,19.39,34.965]
[1693905006101,215.13144166,19.407,19.39,34.965]
[1693905006485,95.9164,19.406,19.39,34.965]
[1693905006885,215.13144166,19.407,19.39,34.965]
[1693905007090,55.0,19.406,19.39,34.965]
[1693905007503,95.9164,19.405,19.39,34.965]
[1693905007883,55.0,19.406,19.39,34.965]